bitfinex/quotes_ETHUSD_20251015
["timestamp","ask_amount","ask_price","bid_price","bid_amount"]
[1760566910059,2.51591363,3974.7,3974.2,0.4582]
[1760566910259,2.51591363,3974.7,3974.1,2.74937377]
[1760566910426,2.51591363,3974.7,3974.1,3.20757377]
[1760566910823,0.25159136,3974.7,3974.1,0.002]
[1760566911022,30.0,3974.7,3974.1,0.002]
[1760566911250,2.51621849,3974.3,3974.1,0.002]
[1760566911452,2.51622968,3974.2,3974.1,0.002]
[1760566912049,32.62082968,3974.2,3974.1,0.002]
[1760566912264,32.62082968,3974.2,3974.1,0.00040479]
[1760566912560,35.12098594,3974.2,3974.1,0.00040479]
[1760566913632,27.52798594,3974.2,3974.1,0.00040479]
[1760566913957,25.20898594,3974.2,3974.1,0.00040479]
[1760566914143,33.78798594,3974.2,3974.1,0.00040479]
[1760566914561,19.44698594,3974.2,3974.1,0.00040479]
[1760566914757,19.34238594,3974.2,3974.1,0.00040479]
[1760566914930,19.44698594,3974.2,3974.1,0.00040479]
[1760566915126,36.5242862,3974.2,3974.1,0.00040479]
[1760566915329,36.6288862,3974.2,3974.1,0.00040479]
[1760566915524,44.87789299,3974.1,3974.0,0.002]
[1760566915756,36.1667359,3974.1,3974.0,0.002]
[1760566915937,36.2713359,3974.1,3974.0,0.002]
[1760566916142,46.2713359,3974.1,3974.0,0.002]
[1760566916331,36.2713359,3974.1,3974.0,0.002]
[1760566916527,36.3948066,3974.1,3974.0,0.002]
[1760566917346,29.0827359,3974.1,3974.0,0.002]
[1760566917751,29.1873359,3974.1,3974.0,0.002]
[1760566918244,29.1873359,3974.1,3973.7,0.002]
[1760566918245,34.87808296,3973.8,3973.7,0.002]
[1760566918448,35.13935982,3973.8,3973.7,0.002]
[1760566918679,35.24405982,3973.8,3973.7,0.002]
[1760566918832,35.24405982,3973.8,3972.0,0.2347]
[1760566918833,44.21269989,3973.3,3972.0,0.2347]
[1760566919233,44.31739989,3973.3,3972.0,0.2347]
[1760566920640,19.71139963,3973.3,3973.1,0.2251]
[1760566921052,19.71139963,3973.3,3972.0,0.2347]
[1760566921053,31.26851187,3973.3,3972.2,0.4335]
[1760566921260,46.43551187,3973.3,3972.2,0.4335]
[1760566922172,46.43551187,3973.3,3972.5,0.4335]
[1760566923985,46.43551187,3973.3,3973.2,0.4355]
[1760566923986,15.21961161,3973.3,3973.2,0.4355]
[1760566924157,10.21661161,3973.3,3973.2,0.6606]
[1760566924342,7.99379963,3973.3,3973.2,0.6606]
[1760566924542,6.26579963,3973.3,3973.2,0.6606]
[1760566925144,6.26579963,3973.3,3973.2,0.2271]
[1760566925347,6.26579963,3973.3,3973.2,0.002]
[1760566925842,6.26579963,3973.3,3973.2,0.4355]
[1760566926371,6.26579963,3973.3,3973.2,0.002]
[1760566926778,8.14404824,3973.3,3973.2,0.002]
[1760566927484,2.51665075,3973.6,3973.2,0.4355]
[1760566927648,2.6405209,3974.3,3973.2,0.4355]
[1760566927649,1.728,3973.9,3973.2,0.4355]
[1760566927848,2.51679963,3973.3,3973.2,0.002]
[1760566931094,12.21260323,3973.3,3973.2,0.002]
[1760566931277,1.728,3973.1,3971.7,0.2251]
[1760566931588,42.51781353,3971.7,3971.6,0.002]
[1760566931753,32.51781353,3971.7,3971.6,0.002]
[1760566932266,33.15141353,3971.7,3971.6,0.002]
[1760566932453,34.79098633,3971.7,3971.6,0.002]
[1760566933089,36.51898633,3971.7,3971.6,0.002]
[1760566933284,36.51898633,3971.7,3971.2,0.002]
[1760566933285,42.21387073,3971.3,3971.2,0.002]
[1760566933749,42.31327073,3971.3,3971.2,0.002]
[1760566933884,2.51832078,3970.9,3970.7,0.002]
[1760566934080,36.35966369,3970.9,3970.7,0.002]
[1760566934304,36.45996369,3970.9,3970.7,0.002]
[1760566935319,3.15211105,3970.6,3970.3,0.002]
[1760566935516,31.728,3970.6,3970.3,0.002]
[1760566935819,31.728,3970.6,3970.5,1.0335]
[1760566935981,34.24651105,3970.6,3970.5,0.6]
[1760566936183,47.07607091,3970.6,3970.5,0.6]
[1760566938500,10.736,3970.6,3970.5,1.0335]
[1760566938682,0.12922248,3970.8,3970.5,1.0335]
[1760566938683,6.454,3970.7,3970.5,1.0335]
[1760566938918,6.454,3970.7,3970.6,0.4335]
[1760566939096,8.97244762,3970.7,3970.6,0.4335]
[1760566939297,30.0,3970.6,3970.5,0.6]
[1760566939499,32.51851105,3970.6,3970.5,0.6]
[1760566940092,35.65226731,3970.6,3970.5,0.6]
[1760566940617,3.15194513,3970.9,3970.5,1.042]
[1760566940833,9.851,3970.8,3970.6,0.442]
[1760566941031,9.851,3970.8,3970.5,0.6]
[1760566941200,9.85,3970.8,3970.6,0.442]
[1760566941399,2.51838519,3970.8,3970.6,0.442]
[1760566941715,11.189,3970.8,3970.7,0.442]
[1760566941883,10.398,3970.8,3970.7,0.442]
[1760566942399,2.219,3971.2,3970.7,0.442]
[1760566942600,0.1165,3972.1,3971.1,0.2284]
[1760566942601,2.5179092,3971.6,3971.1,0.2284]
[1760566942786,2.5179092,3971.6,3970.7,0.442]
[1760566942787,0.54829092,3971.6,3970.5,0.6]
[1760566942992,30.0,3971.0,3970.5,0.6]
[1760566943220,30.0,3970.7,3970.5,0.6]
[1760566943433,32.51849169,3970.7,3970.5,0.6]
[1760566943597,2.51851105,3970.6,3970.5,0.6]
[1760566943797,32.51851105,3970.6,3970.5,0.6]
[1760566943998,35.01866731,3970.6,3970.5,0.6]
[1760566944204,35.65226731,3970.6,3970.5,0.6]
[1760566946395,35.65226731,3970.6,3970.0,50.0]
[1760566946396,3.15234842,3970.3,3970.0,50.0]
[1760566946595,44.57623184,3970.1,3970.0,1.73309247]
[1760566946832,33.15287243,3969.4,3968.9,0.002]
[1760566947243,33.25617243,3969.4,3968.9,0.002]
[1760566947736,44.67997603,3969.4,3968.9,0.002]
[1760566948634,44.57667603,3969.4,3968.9,0.002]
[1760566948838,33.24475736,3969.4,3968.9,0.002]
[1760566949025,26.80948493,3969.4,3969.1,0.2304]
[1760566949205,36.11575736,3969.4,3969.1,0.002]
[1760566949405,27.38648493,3969.4,3969.1,0.002]
[1760566949604,19.4256,3969.4,3969.1,0.2304]
[1760566949801,1.728,3969.4,3969.3,0.444]
[1760566950039,0.155,3970.0,3969.3,0.444]
[1760566950040,30.0,3970.1,3969.3,0.444]
[1760566950241,30.0,3970.0,3969.3,0.444]
[1760566950424,30.0,3969.8,3969.3,0.444]
[1760566950602,12.86,3969.8,3969.4,0.442]
[1760566950807,3.661,3969.8,3969.5,0.442]
[1760566951007,3.661,3969.8,3969.6,0.442]
[1760566951210,1.728,3970.0,3969.7,0.442]
[1760566951525,12.7,3970.1,3969.8,0.442]
[1760566951730,12.7,3970.1,3969.9,0.442]
[1760566953020,2.51901969,3969.8,3969.3,0.444]
[1760566953220,2.51897365,3969.9,3969.4,0.442]
[1760566953444,2.51897365,3969.9,3969.3,0.002]
[1760566953741,2.51897365,3969.9,3969.5,0.442]
[1760566954141,2.51897365,3969.9,3969.3,0.002]
[1760566954444,2.51889858,3970.0,3969.4,0.442]
[1760566954629,2.51889858,3970.0,3969.5,0.002]
[1760566954829,30.0,3970.0,3969.5,0.002]
[1760566955035,30.0,3970.1,3969.6,0.442]
[1760566955343,12.205,3970.1,3969.7,0.442]
[1760566955544,0.1256,3969.7,3969.5,0.002]
[1760566955731,22.823,3970.3,3969.5,0.002]
[1760566956046,17.061,3970.2,3969.5,2.52119577]
[1760566956247,15.931,3970.2,3969.6,0.442]
[1760566956450,28.644,3970.1,3969.6,0.442]
[1760566957143,28.644,3970.1,3969.5,0.002]
[1760566957144,0.1256,3969.6,3969.5,2.52117774]
[1760566957714,0.1256,3969.6,3969.5,2.96317774]
[1760566957915,0.1256,3969.6,3969.5,3.51162846]
[1760566958110,30.0,3970.6,3969.5,3.51162846]
[1760566958347,30.0,3970.6,3969.8,2.51899957]
[1760566958651,30.0,3970.6,3969.9,0.442]
[1760566959418,30.0,3970.4,3969.5,0.002]
[1760566959624,30.0,3970.2,3969.5,0.002]
[1760566959826,32.51877744,3970.2,3969.5,0.002]
[1760566960028,2.5188427,3970.1,3969.5,0.002]
[1760566961551,30.0,3970.1,3969.5,0.002]
[1760566961736,2.51869201,3970.4,3969.6,2.51908897]
[1760566961737,0.6336,3970.4,3969.6,2.51908897]
[1760566961941,12.907,3970.3,3969.7,2.51907111]
[1760566962161,11.275,3970.2,3969.7,2.51907111]
[1760566962329,11.275,3970.2,3969.6,2.96113855]
[1760566962658,9.652,3970.2,3969.6,2.96112399]
[1760566962819,2.99,3970.2,3969.6,2.96112399]
[1760566963154,2.99,3970.2,3969.6,0.442]
[1760566963454,3.264,3970.4,3969.8,2.51900981]
[1760566963754,24.261,3970.3,3969.7,0.442]
[1760566963959,14.261,3970.3,3969.7,0.442]
[1760566964142,2.51942503,3970.8,3970.2,0.2284]
[1760566964143,3.543,3970.7,3970.2,0.2284]
[1760566964450,3.543,3970.7,3970.2,2.74715059]
[1760566964654,3.543,3970.7,3970.3,0.442]
[1760566965355,0.001,3970.8,3970.3,0.442]
[1760566965560,0.001,3970.8,3970.4,0.442]
[1760566966737,0.001,3970.8,3970.4,2.96063738]
[1760566967159,0.001,3970.8,3970.5,0.442]
[1760566967522,2.51863347,3970.5,3969.7,2.9610801]
[1760566967728,2.51877144,3970.2,3969.4,5.53625159]
[1760566967930,5.01879726,3970.4,3969.4,2.96124702]
[1760566968130,30.0,3970.0,3969.4,0.442]
[1760566968355,30.0,3970.0,3969.3,2.52130373]
[1760566968356,32.51890558,3970.0,3969.3,2.52130373]
[1760566968562,30.0,3970.0,3969.3,2.52130373]
[1760566968856,30.0,3970.0,3969.4,2.51927126]
[1760566969462,2.5188989,3970.0,3969.3,0.002]
[1760566969646,30.0,3969.8,3969.3,0.002]
[1760566969850,2.50015626,3969.7,3969.3,0.002]
[1760566970050,2.77839641,3969.9,3969.3,0.002]
[1760566970051,30.0,3969.8,3969.3,0.002]
[1760566971564,30.0,3969.8,3969.3,2.52131747]
[1760566971865,12.553,3970.3,3969.6,0.4421]
[1760566972058,1.728,3970.6,3969.6,2.96123087]
[1760566972242,20.512,3970.5,3969.7,0.4421]
[1760566972564,0.001,3970.2,3969.8,2.51901859]
[1760566972733,0.001,3970.2,3969.9,0.4421]
[1760566973459,0.001,3970.2,3969.7,2.51905202]
[1760566973674,0.001,3970.2,3969.8,0.4421]
[1760566973855,0.001,3970.2,3969.8,2.9611159]
[1760566974335,0.001,3970.2,3969.9,0.4421]
[1760566975872,0.001,3970.2,3969.7,2.51905993]
[1760566976164,0.001,3970.2,3969.8,2.96111002]
[1760566976767,0.001,3970.2,3969.8,0.4421]
[1760566977749,0.001,3970.2,3969.9,0.4308]
[1760566978236,30.0,3970.1,3969.5,2.576]
[1760566978431,30.0,3970.1,3969.5,0.002]
[1760566978432,0.1256,3969.7,3969.5,0.002]
[1760566978636,27.931,3970.1,3969.5,0.002]
[1760566978851,30.0,3969.9,3969.5,0.002]
[1760566979290,8.679,3969.8,3969.5,0.002]
[1760566979455,18.679,3969.8,3969.5,0.002]
[1760566979656,2.174,3969.8,3969.5,0.002]
[1760566981251,0.001,3970.2,3969.5,0.002]
[1760566981456,8.079,3970.2,3970.1,0.2296]
[1760566981678,8.079,3970.2,3969.6,0.4308]
[1760566981850,0.001,3970.2,3969.7,2.51907769]
[1760566982389,0.001,3970.2,3969.5,2.52120676]
[1760566982390,0.001,3970.2,3970.1,2.74842824]
[1760566982754,0.001,3970.2,3970.1,3.17922824]
[1760566983251,0.1256,3970.1,3969.5,0.002]
[1760566983495,2.51889241,3970.0,3969.5,0.002]
[1760566983651,0.25198924,3969.9,3969.5,0.002]
[1760566983856,30.0,3969.8,3969.5,0.002]
[1760566984193,6.65198924,3969.9,3969.6,0.4308]
[1760566984369,6.4,3969.9,3969.7,2.51908064]
[1760566984571,6.4,3969.9,3969.8,0.4308]
[1760566984968,0.1256,3969.8,3969.5,0.002]
[1760566985166,0.1256,3969.7,3969.5,0.002]
[1760566985484,30.0,3969.7,3969.5,0.002]
[1760566985666,2.5191455,3969.6,3969.5,0.002]
[1760566986570,30.0,3969.7,3969.5,0.002]
[1760566986769,19.587,3969.8,3969.5,0.002]
[1760566986989,8.456,3969.7,3969.5,0.002]
[1760566987161,18.456,3969.7,3969.5,0.002]
[1760566987502,6.4,3969.9,3969.6,0.4308]
[1760566987881,6.4,3969.9,3969.5,2.52119566]
[1760566987882,0.1256,3969.6,3969.5,0.002]
[1760566988061,1.04524698,3969.6,3969.5,0.002]
[1760566988256,2.6447455,3969.6,3969.5,0.002]
[1760566988581,0.1256,3969.6,3969.5,0.4328]
[1760566988892,6.4,3970.1,3969.5,0.4328]
[1760566988893,12.062,3970.0,3969.5,0.4328]
[1760566989079,2.062,3970.0,3969.5,0.4328]
[1760566989387,8.91884725,3970.1,3969.5,0.002]
[1760566989587,18.376,3970.0,3969.6,0.4308]
[1760566989787,6.4,3970.1,3969.7,0.4308]
[1760566989953,6.4,3970.1,3969.8,0.4308]
[1760566990182,0.001,3970.2,3969.5,2.52119344]
[1760566990183,6.401,3970.2,3969.9,0.4308]
[1760566990581,0.001,3970.0,3969.9,2.51894275]
[1760566991312,0.001,3970.0,3969.9,2.94974275]
[1760566991714,0.001,3970.0,3969.9,0.4308]
[1760566992215,0.001,3970.0,3969.9,2.94975513]
[1760566993282,0.001,3970.0,3969.9,0.4308]
[1760566993482,0.001,3970.0,3969.9,2.94975513]
[1760566993882,0.1256,3969.9,3969.5,0.002]
[1760566994320,0.001,3970.0,3969.5,2.572]
[1760566994488,0.6412,3970.0,3969.5,5.09120319]
[1760566995013,0.6412,3970.0,3969.5,5.52200319]
[1760566995225,0.6412,3970.0,3969.5,5.09120319]
[1760566995425,0.6412,3970.0,3969.6,2.51912528]
[1760566995927,0.6412,3970.0,3969.6,2.94992528]
[1760566997785,0.6412,3970.0,3969.6,0.4308]
[1760566997990,0.001,3970.0,3969.7,2.51903264]
[1760566998191,0.001,3970.0,3969.9,2.51895513]
[1760566998615,0.001,3970.0,3969.9,2.94975513]
[1760566999508,7.0412,3970.0,3969.5,2.52117036]
[1760566999715,0.1256,3969.7,3969.5,0.002]
[1760567000026,0.1508,3969.9,3969.5,0.002]
[1760567001095,0.1508,3969.9,3969.6,2.51909889]
[1760567001315,7.0412,3970.0,3969.7,2.51907048]
[1760567002299,7.0412,3970.0,3969.5,0.002]
[1760567002500,0.8214,3969.9,3969.5,0.002]
[1760567002705,2.51912205,3969.7,3969.5,0.002]
[1760567003694,6.4,3969.8,3969.5,0.002]
[1760567005798,6.4,3969.8,3969.5,2.52118921]
[1760567007215,6.4,3969.8,3969.5,0.002]
[1760567008216,8.37899331,3969.8,3969.5,0.002]
[1760567008415,6.4,3969.8,3969.5,0.002]
[1760567008723,32.5191455,3969.6,3969.5,0.002]
[1760567008967,38.9191455,3969.6,3969.5,0.002]
[1760567009267,26.9342455,3969.6,3969.5,0.002]
[1760567009835,39.0212455,3969.6,3969.5,0.002]
[1760567010034,41.52140176,3969.6,3969.5,0.002]
[1760567013436,12.78615626,3969.6,3969.5,0.002]
[1760567013633,6.4,3969.6,3969.5,0.4698]
[1760567014031,6.4,3969.6,3969.5,2.98900896]
[1760567014635,6.401,3970.0,3969.9,2.51895513]
[1760567014866,6.401,3970.0,3969.9,2.98675513]
[1760567016062,0.001,3970.0,3969.9,2.98675513]
[1760567016259,0.001,3970.0,3969.9,6.10333552]
[1760567016438,0.001,3970.0,3969.9,7.95693552]
[1760567016641,0.001,3970.2,3970.1,2.51882824]
[1760567016970,0.001,3970.2,3970.1,4.47392824]
[1760567017163,0.001,3970.2,3970.1,6.13761462]
[1760567020279,0.001,3970.2,3970.1,6.64561462]
[1760567020456,0.001,3970.2,3970.1,6.77121462]
[1760567021074,0.001,3970.6,3970.5,4.24657448]
[1760567021075,1e-08,3970.6,3970.5,4.24657448]
[1760567021244,1e-08,3970.6,3970.5,6.81257448]
[1760567021446,1e-08,3970.6,3970.5,7.91808206]
[1760567021645,1e-08,3970.6,3970.5,8.38588206]
[1760567021876,0.001,3971.6,3970.6,2.3616]
[1760567022180,0.001,3971.6,3971.5,2.74504032]
[1760567022377,0.001,3971.6,3971.5,5.31104032]
[1760567023281,0.001,3971.6,3971.5,5.08394032]
[1760567023846,0.001,3971.6,3971.5,2.566]
[1760567024063,0.001,3971.6,3971.5,5.08394032]
[1760567024261,0.001,3971.6,3971.5,5.55174032]
[1760567025459,0.001,3971.6,3971.5,5.08294032]
[1760567026106,0.001,3971.6,3971.5,5.64686243]
[1760567026287,0.001,3971.6,3971.5,6.11466243]
[1760567026476,0.001,3971.6,3971.5,5.64686243]
[1760567027363,0.001,3971.6,3971.1,0.4678]
[1760567027576,0.001,3971.6,3971.0,0.2271]
[1760567027776,0.001,3971.6,3971.2,1.728]
[1760567027978,0.001,3971.6,3971.5,2.51794032]
[1760567028386,0.001,3971.6,3971.5,5.08294032]
[1760567029070,0.001,3971.6,3971.5,6.3803299]
[1760567029805,0.001,3971.6,3971.5,5.9125299]
[1760567032009,0.001,3971.6,3971.5,6.3519299]
[1760567039260,0.001,3971.6,3971.5,8.0799299]
[1760567043127,0.001,3971.6,3971.5,8.8391299]
[1760567046056,1e-08,3972.4,3972.3,3.15103322]
[1760567046260,1e-08,3972.4,3972.3,6.80943322]
[1760567047081,1e-08,3972.4,3972.3,7.27533322]
[1760567051487,1e-08,3972.4,3972.3,4.71133322]
[1760567051788,1e-08,3972.4,3972.3,4.24543322]
[1760567051989,1e-08,3972.4,3972.2,2.51749182]
[1760567051990,0.10040001,3972.4,3972.2,2.51749182]
[1760567052199,0.1004,3972.3,3972.2,5.08145579]
[1760567053297,0.1004,3972.3,3972.2,2.51745579]
[1760567053495,0.1004,3972.3,3972.2,5.08145579]
[1760567054990,1e-08,3972.4,3972.3,2.51743322]
[1760567057115,0.10040001,3972.4,3972.3,2.51743322]
[1760567060105,1e-08,3972.4,3972.3,2.51743322]
[1760567063628,1e-08,3972.4,3972.3,5.08043322]
[1760567064919,1e-08,3972.4,3972.3,8.00113093]
[1760567065530,1e-08,3972.4,3972.3,4.24543322]
[1760567065733,1e-08,3972.4,3972.3,7.24133322]
[1760567071310,1e-08,3972.4,3972.3,7.87493322]
[1760567073644,0.001,3972.8,3972.4,2.3616]
[1760567073955,0.001,3974.0,3973.1,4.24492632]
[1760567074106,0.001,3974.0,3973.1,10.85948526]
[1760567074306,0.001,3974.0,3973.1,11.9256442]
[1760567074511,0.001,3974.0,3973.1,14.4886442]
[1760567075739,0.001,3974.3,3974.2,5.71248862]
[1760567075927,0.001,3974.3,3974.2,10.82636851]
[1760567076332,0.001,3974.3,3974.2,11.25926851]
[1760567076514,0.001,3974.3,3974.2,10.82636851]
[1760567077747,0.001,3974.3,3974.2,4.24422968]
[1760567077950,0.001,3974.3,3974.2,6.80622968]
[1760567079517,0.001,3974.3,3974.2,10.00248862]
[1760567080266,0.001,3974.3,3974.2,10.43538862]
[1760567081124,0.001,3974.3,3974.2,10.5361764]
[1760567081417,0.001,3974.3,3974.2,11.86359507]
[1760567082730,0.001,3974.3,3974.2,10.00248862]
[1760567083965,0.001,3974.3,3974.2,4.24422968]
[1760567084168,0.1006,3974.3,3974.2,6.80622968]
[1760567084872,0.001,3974.3,3974.2,6.80622968]
[1760567086768,0.001,3974.3,3974.2,4.24422968]
[1760567086968,0.001,3974.3,3974.2,6.80622968]
[1760567087466,0.1006,3974.3,3974.2,4.24422968]
[1760567087672,0.1006,3974.3,3974.2,5.07722968]
[1760567088248,0.001,3974.3,3974.2,5.07722968]
[1760567089433,0.001,3974.3,3974.2,5.51012968]
[1760567089638,0.001,3974.3,3974.2,5.07722968]
[1760567096498,0.001,3974.3,3974.2,11.53013269]
[1760567096653,0.001,3974.3,3974.2,11.65573269]
[1760567096852,0.001,3974.3,3974.2,11.78133269]
[1760567097172,0.001,3974.3,3974.2,12.41493269]
[1760567097375,1e-08,3974.7,3974.6,2.51597645]
[1760567097573,1e-08,3974.7,3974.6,9.07483847]
[1760567097774,1e-08,3974.7,3974.6,6.31097953]
[1760567098094,1e-08,3974.7,3974.6,8.39883539]
[1760567098253,1e-08,3974.7,3974.6,8.27323539]
[1760567099862,1e-08,3974.7,3974.6,5.71223539]
[1760567100061,1e-08,3974.7,3974.6,8.27323539]
[1760567100477,1e-08,3974.7,3974.4,2.64165435]
[1760567100478,1e-08,3974.7,3974.3,0.2256]
[1760567100686,0.1256,3974.6,3974.5,4.24403975]
[1760567100858,0.1256,3974.6,3974.5,8.05677992]
[1760567101058,1e-08,3974.7,3974.6,2.51597645]
[1760567101258,1e-08,3974.7,3974.6,5.33513621]
[1760567101490,1e-08,3974.7,3974.6,4.67637645]
[1760567101655,1e-08,3974.7,3974.6,7.23737645]
[1760567101861,1e-08,3974.7,3974.6,9.00226388]
[1760567102295,1e-08,3974.7,3974.6,9.63586388]
[1760567102594,1e-08,3974.7,3974.6,9.12786388]
[1760567103103,1e-08,3974.7,3974.6,6.13446388]
[1760567103408,1e-08,3974.7,3974.6,6.92957645]
[1760567103768,1e-08,3974.7,3974.6,7.36197645]
[1760567104074,1e-08,3974.7,3974.6,4.24397645]
[1760567104393,1e-08,3974.7,3974.6,6.82913621]
[1760567104704,1e-08,3974.7,3974.6,7.99557645]
[1760567105003,1e-08,3974.7,3974.6,9.05929807]
[1760567105610,1e-08,3974.7,3974.6,6.49929807]
[1760567105761,1e-08,3974.7,3974.6,8.42569807]
[1760567106503,1e-08,3974.7,3974.6,9.05929807]
[1760567110108,0.001,3975.1,3975.0,4.87732327]
[1760567110401,0.001,3975.1,3975.0,17.73183875]
[1760567110623,0.001,3975.1,3975.0,18.16423875]
[1760567110826,0.001,3975.1,3975.0,18.28983875]
[1760567112785,0.001,3975.5,3975.4,3.14907014]
[1760567113011,0.001,3975.5,3975.4,7.92477715]
[1760567113194,0.001,3975.5,3975.4,8.48277715]
[1760567113396,0.1592,3977.0,3976.9,2.51452136]
[1760567113598,0.1256,3978.8,3977.0,2.3616]
[1760567113812,0.1256,3978.8,3978.7,2.51338376]
[1760567114020,0.2246,3978.8,3978.7,6.80138376]
[1760567114623,0.1256,3978.8,3978.7,6.80138376]
[1760567114928,0.1492,3979.0,3978.9,2.51325743]
[1760567116023,0.2482,3979.0,3978.7,1.728]
[1760567116206,0.099,3978.9,3978.8,5.07232059]
[1760567116536,0.1492,3979.0,3978.8,5.07232059]
[1760567116537,0.1492,3979.0,3978.9,2.51325743]
[1760567118752,0.1492,3979.0,3978.7,1.728]
[1760567118929,0.1492,3979.0,3978.9,2.559]
[1760567119126,0.1256,3978.8,3978.5,1.728]
[1760567119332,0.1256,3978.8,3978.6,2.559]
[1760567119533,0.099,3978.7,3978.6,4.24144694]
[1760567119732,0.099,3978.7,3978.6,6.80044694]
[1760567119952,0.099,3978.7,3978.6,4.24144694]
[1760567120267,0.099,3978.7,3978.6,6.80044694]
[1760567120613,0.099,3978.7,3978.6,5.07244694]
[1760567120920,0.099,3978.7,3978.1,0.1256]
[1760567121254,0.1256,3978.4,3978.3,4.24162437]
[1760567121459,0.1256,3978.4,3978.3,6.80062437]
[1760567121846,0.2246,3978.4,3978.3,6.80062437]
[1760567122748,0.1256,3978.4,3978.3,1.728]
[1760567123057,2.51365412,3978.3,3977.3,2.51422466]
[1760567123263,0.1256,3978.1,3977.6,2.51406372]
[1760567123458,2.51362601,3978.4,3977.7,2.558]
[1760567123617,0.2212,3978.0,3977.7,5.07201349]
[1760567123824,0.2212,3977.9,3977.0,0.75541348]
[1760567124022,0.1256,3977.3,3977.2,2.51433169]
[1760567124252,0.1256,3977.3,3977.0,2.514412]
[1760567124419,0.1234,3977.1,3976.2,0.75548577]
[1760567124628,0.1256,3976.6,3976.5,2.51473574]
[1760567124828,0.1234,3977.1,3977.0,2.51445813]
[1760567125032,0.1234,3977.1,3977.0,5.07245813]
[1760567125228,0.1234,3977.1,3977.0,2.558]
[1760567125434,0.2224,3977.1,3977.0,2.558]
[1760567125648,0.39706815,3977.1,3976.7,2.558]
[1760567125859,0.1234,3977.1,3977.0,2.51445813]
[1760567126073,2.3616,3978.3,3976.7,2.558]
[1760567126074,0.1232,3977.5,3976.7,2.558]
[1760567126373,0.0995,3977.4,3976.2,1.9513]
[1760567126663,0.0995,3977.3,3977.1,2.51437985]
[1760567126863,0.0995,3977.2,3976.4,1.728]
[1760567127071,0.0995,3977.2,3976.6,4.24270526]
[1760567127246,0.0995,3977.2,3976.6,1.728]
[1760567127452,0.0995,3977.2,3976.7,2.558]
[1760567127655,0.0995,3977.1,3976.7,2.558]
[1760567127836,0.0995,3977.0,3976.7,5.07264654]
[1760567128365,0.0995,3976.9,3976.8,2.558]
[1760567128729,0.61229577,3977.2,3976.8,2.558]
[1760567128966,0.0995,3977.1,3976.8,2.558]
[1760567129330,0.0995,3977.1,3976.8,5.07257676]
[1760567129674,0.0995,3977.1,3976.8,2.558]
[1760567129827,0.0995,3977.0,3976.7,2.558]
[1760567130028,12.51414204,3977.5,3976.7,5.07259939]
[1760567130029,0.0995,3977.3,3976.7,5.07259939]
[1760567131344,0.61227881,3977.3,3976.7,2.558]
[1760567131538,0.61227881,3977.3,3976.6,2.51668937]
[1760567131539,30.7331,3977.2,3976.6,0.002]
[1760567131744,2.51464782,3976.7,3976.6,0.002]
[1760567132137,35.81314782,3976.7,3976.6,0.002]
[1760567132343,0.0995,3977.0,3976.6,0.002]
[1760567132546,0.0995,3977.2,3976.6,0.002]
[1760567132877,0.26137067,3977.2,3976.6,2.56]
[1760567133093,15.064,3977.5,3976.6,5.51330449]
[1760567133253,14.315,3977.6,3976.9,2.51451553]
[1760567133442,13.872,3977.4,3976.8,2.51457128]
[1760567133838,11.89,3977.4,3976.8,2.51457128]
[1760567134177,11.89,3977.4,3976.7,2.51463187]
[1760567134377,1.44041552,3977.3,3976.7,2.51463187]
[1760567134567,2.51421459,3977.4,3976.7,2.51463187]
[1760567135675,0.1256,3976.7,3976.6,2.56]
[1760567135877,0.1256,3976.7,3976.6,5.07471105]
[1760567137387,0.1256,3976.7,3976.6,5.51331105]
[1760567137974,0.1229,3977.7,3976.6,5.51331105]
[1760567137975,0.1229,3977.7,3977.2,2.51427174]
[1760567138148,0.39653361,3977.7,3977.2,2.51427174]
[1760567138893,0.39653361,3977.7,3977.3,2.51426532]
[1760567139060,0.1229,3977.7,3977.3,2.51426532]
[1760567139880,0.1229,3977.7,3977.2,2.51430831]
[1760567140086,0.1229,3977.7,3977.1,2.7823]
[1760567140252,0.1229,3977.7,3977.1,2.559]
[1760567140451,2.63697099,3977.7,3977.1,2.559]
[1760567142496,2.51410218,3977.6,3977.1,2.559]
[1760567142870,2.5143079,3977.3,3977.1,2.558]
[1760567143068,2.6138079,3977.3,3977.1,2.558]
[1760567143304,2.51433169,3977.2,3977.1,2.558]
[1760567144160,0.1256,3977.1,3976.6,0.002]
[1760567144476,0.1229,3977.7,3976.6,0.002]
[1760567144477,2.51446602,3977.0,3976.6,2.56]
[1760567144676,2.63695758,3977.7,3976.6,5.07466844]
[1760567144677,2.51421542,3977.4,3976.6,5.07466844]
[1760567144854,2.51429697,3977.3,3976.6,5.54846844]
[1760567145058,0.26369576,3977.6,3977.0,2.51445602]
[1760567145481,0.26369576,3977.6,3977.1,0.235]
[1760567145692,0.26369576,3977.6,3977.2,0.4738]
[1760567145891,2.374,3978.1,3977.4,2.51419209]
[1760567146191,2.374,3978.1,3977.4,5.07219209]
[1760567146192,0.001,3977.5,3977.4,5.07219209]
[1760567146581,0.001,3977.5,3977.4,3.0318]
[1760567146976,0.001,3977.5,3977.4,2.558]
[1760567153615,0.50390706,3977.5,3976.2,0.002]
[1760567153912,2.51425149,3977.4,3976.8,2.51457788]
[1760567154113,2.51516166,3977.5,3976.8,2.51457788]